fUST/lending_fUST_20250310
["ID","MTS","AMOUNT","RATE_DAILY","PERIOD"]
[355758439,1741539038594,-377.68432478,0.000369,7]
[355758440,1741539038651,-564.67406732,0.000369,7]
[355758441,1741539038661,-560.0,0.00038971,5]
[355758442,1741539038671,-209.70110676,0.00039999,2]
[355758443,1741539038680,-500.0,0.00039999,2]
[355758444,1741539038690,-500.0,0.00039999,2]
[355758445,1741539038699,-592.14723359,0.00039999,2]
[355758446,1741539038708,-500.0,0.00039999,2]
[355758447,1741539038718,-500.0,0.00039999,2]
[355758448,1741539038727,-500.0,0.00039999,2]
[355758449,1741539038737,-500.0,0.00039999,2]
[355758450,1741539038747,-5641.33484688,0.0004,15]
[355758451,1741539038757,-1800.0,0.0004,30]
[355758454,1741539038772,-170.15,0.00040042,2]
[355758456,1741539038782,-24900.0,0.00040056,2]
[355758459,1741539038792,-500.0,0.000401,5]
[355758461,1741539038801,-500.0,0.000401,5]
[355758462,1741539038811,-167.8115828,0.00040186,2]
[355758463,1741539038820,-173.0045,0.00041055,14]
[355758464,1741539038830,-318.337379,0.00041211,2]
[355758465,1741539038839,-185.899,0.00041531,61]
[355758466,1741539038849,-783.0,0.00041725,5]
[355758467,1741539038859,-500.0,0.00041879,10]
[355758468,1741539038868,-1000.0,0.00041879,2]
[355758469,1741539038878,-500.0,0.00041879,10]
[355758470,1741539038888,-1000.0,0.00041879,10]
[355758471,1741539038899,-462.57525635,0.00041879,10]
[355758472,1741539038908,-416.66666667,0.00042328,2]
[355758473,1741539038918,-539.99178375,0.000424,15]
[355758474,1741539038927,-307.26750058,0.00042608,31]
[355758475,1741539038937,-192.32842286,0.00042608,31]
[355758476,1741539038946,-9891.86226853,0.00042609,3]
[355758477,1741539038959,-290.02550289,0.00042609,3]
[355758478,1741539039497,-147.0673509,0.00042609,3]
[355758479,1741539039510,-279.00426295,0.00042609,3]
[355758480,1741539039523,-594.98404894,0.00042609,3]
[355758481,1741539040137,-1794.44828812,0.00042609,3]
[355758525,1741539040816,-1819.37956694,0.00042609,3]
[355758572,1741539043950,-738.9027077,0.00042609,3]
[355758573,1741539043960,-7668.3863783,0.00042609,3]
[355758574,1741539043972,-796.8705225,0.00042609,3]
[355758575,1741539044037,-853.44283946,0.00042609,3]
[355758609,1741539046681,-1038.00000001,0.00042609,3]
[355758611,1741539168254,1042.32782036,0.0003,3]
[355758635,1741540045129,-376.00551376,0.00030665,2]
[355758639,1741540142686,265.97588603,0.00028565,2]
[355758642,1741540147086,-166.29913352,0.00030665,2]
[355758643,1741540147108,-228.36627315,0.00032147,2]
[355758644,1741540147132,-303.941176,0.00032827,2]
[355758645,1741540147158,-34.37868503,0.00033,2]
[355758646,1741540159656,3571.0,0.0003,2]
[355758647,1741540165075,-2321.76725221,0.000329,6]
[355758648,1741540165100,-910.5917872,0.00033,2]
[355758649,1741540165123,-500.0,0.00033,2]
[355758650,1741540165147,-400.0,0.00033449,2]
[355758651,1741540165169,-215.08725041,0.0003345,7]
[355758652,1741540165199,-500.0,0.0003345,2]
[355758653,1741540165227,-500.0,0.0003345,7]
[355758654,1741540165250,-500.0,0.0003345,2]
[355758655,1741540165273,-500.0,0.0003345,7]
[355758656,1741540165296,-500.0,0.0003345,7]
[355758657,1741540165320,-500.0,0.0003345,2]
[355758658,1741540165342,-500.0,0.0003345,7]
[355758659,1741540165365,-500.0,0.0003345,2]
[355758660,1741540165387,-500.0,0.0003345,7]
[355758661,1741540165413,-500.0,0.0003345,2]
[355758662,1741540165441,-500.0,0.0003345,7]
[355758663,1741540165465,-277.01031743,0.0003345,2]
[355758664,1741540165488,-500.0,0.0003345,7]
[355758665,1741540165512,-500.0,0.0003345,2]
[355758666,1741540165535,-500.0,0.0003345,7]
[355758667,1741540165558,-500.0,0.0003345,2]
[355758668,1741540165579,-626.84518554,0.0003345,7]
[355758669,1741540165722,-500.0,0.0003345,2]
[355758670,1741540165746,-500.0,0.0003345,7]
[355758671,1741540165769,-500.0,0.0003345,2]
[355758672,1741540165791,-500.0,0.0003345,7]
[355758673,1741540165816,-500.0,0.0003345,2]
[355758674,1741540165837,-500.0,0.0003345,7]
[355758675,1741540165860,-500.0,0.0003345,2]
[355758676,1741540165886,-500.0,0.0003345,2]
[355758677,1741540165909,-500.0,0.0003345,7]
[355758678,1741540165934,-293.77319562,0.0003345,7]
[355758679,1741540165957,-500.0,0.0003345,2]
[355758680,1741540165979,-500.0,0.0003345,7]
[355758681,1741540166004,-500.0,0.0003345,2]
[355758682,1741540166026,-500.0,0.0003345,7]
[355758683,1741540166047,-488.95522897,0.0003345,7]
[355758684,1741540166069,-500.0,0.0003345,2]
[355758685,1741540166091,-500.0,0.0003345,2]
[355758686,1741540166112,-500.0,0.0003345,7]
[355758687,1741540166134,-500.0,0.0003345,2]
[355758688,1741540166157,-500.0,0.0003345,2]
[355758689,1741540166185,-500.0,0.0003345,7]
[355758690,1741540166209,-500.0,0.0003345,2]
[355758691,1741540166231,-500.0,0.0003345,7]
[355758692,1741540166255,-500.0,0.0003345,2]
[355758693,1741540166276,-500.0,0.0003345,7]
[355758694,1741540166301,-500.0,0.0003345,2]
[355758695,1741540166320,-500.0,0.0003345,7]
[355758696,1741540166339,-500.0,0.0003345,2]
[355758697,1741540166359,-500.0,0.0003345,2]
[355758698,1741540166376,-416.0377336,0.0003345,7]
[355758771,1741540232067,-500.0,0.0003345,2]
[355758772,1741540232081,-500.0,0.0003345,2]
[355758774,1741540232094,-500.0,0.0003345,2]
[355758776,1741540232107,-500.0,0.0003345,2]
[355758779,1741540232119,-500.0,0.0003345,2]
[355758781,1741540232131,-500.0,0.0003345,2]
[355758783,1741540232144,-500.0,0.0003345,2]
[355758786,1741540232157,-500.0,0.0003345,2]
[355758788,1741540232169,-500.0,0.0003345,2]
[355758790,1741540232182,-500.0,0.0003345,2]
[355758793,1741540232195,-500.0,0.0003345,2]
[355758795,1741540232209,-500.0,0.0003345,2]
[355758797,1741540232225,-500.0,0.0003345,2]
[355758800,1741540232240,-500.0,0.0003345,2]
[355758802,1741540232254,-500.0,0.0003345,2]
[355758804,1741540232266,-500.0,0.0003345,2]
[355758806,1741540232278,-500.0,0.0003345,2]
[355758809,1741540232289,-500.0,0.0003345,2]
[355758812,1741540232303,-500.0,0.0003345,2]
[355758815,1741540232313,-500.0,0.0003345,2]
[355758818,1741540232324,-500.0,0.0003345,2]
[355758820,1741540232334,-500.0,0.0003345,2]
[355758822,1741540232343,-500.0,0.0003345,2]
[355758824,1741540232353,-500.0,0.0003345,2]
[355758826,1741540232362,-500.0,0.0003345,2]
[355758831,1741540232560,-387.68689834,0.0003345,2]
[355758832,1741540232571,-500.0,0.0003345,2]
[355758833,1741540232581,-500.0,0.0003345,2]
[355758834,1741540232590,-500.0,0.0003345,2]
[355758835,1741540232600,-500.0,0.0003345,2]
[355758836,1741540232610,-500.0,0.0003345,2]
[355758837,1741540232619,-500.0,0.0003345,2]
[355758838,1741540232629,-500.0,0.0003345,2]
[355758839,1741540232638,-500.0,0.0003345,2]
[355758840,1741540232647,-500.0,0.0003345,2]
[355758841,1741540232657,-500.0,0.0003345,2]
[355758842,1741540232667,-500.0,0.0003345,2]
[355758843,1741540232676,-500.0,0.0003345,2]
[355758844,1741540232685,-500.0,0.0003345,2]
[355758845,1741540232695,-500.0,0.0003345,2]
[355758846,1741540232704,-500.0,0.0003345,2]
[355758847,1741540232713,-500.0,0.0003345,2]
[355758848,1741540232727,-500.0,0.0003345,2]
[355758849,1741540232736,-500.0,0.0003345,2]
[355758850,1741540232745,-500.0,0.0003345,2]
[355758851,1741540232755,-500.0,0.0003345,2]
[355758852,1741540232762,-500.0,0.0003345,2]
[355758853,1741540232770,-500.0,0.0003345,2]
[355758854,1741540232779,-500.0,0.0003345,2]
[355758855,1741540232789,-500.0,0.0003345,2]
[355758856,1741540232800,-500.0,0.0003345,2]
[355758857,1741540232810,-500.0,0.0003345,2]
[355758858,1741540232819,-300.0,0.0003345,2]
[355758859,1741540232829,-238.32912515,0.0003345,2]
[355758890,1741540237722,-3456.95754732,0.00033452,2]
[355758910,1741540237966,-21443.04245268,0.00033452,2]
[355758911,1741540237979,-500.0,0.000335,5]
[355758912,1741540237988,-573.03127866,0.000335,5]
[355758913,1741540237998,-500.0,0.000335,5]
[355758914,1741540238008,-265.97588603,0.00033565,2]
[355758915,1741540238017,-500.0,0.00034133,5]
[355758916,1741540238026,-500.0,0.00034133,2]
[355758917,1741540238036,-500.0,0.00034133,5]
[355758918,1741540238046,-500.0,0.00034133,5]
[355758919,1741540238056,-186.0,0.00034658,2]
[355758920,1741540238066,-225.1935,0.00035,5]
[355758921,1741540238076,-336.503641,0.0003589,2]
[355758922,1741540238085,-600.0,0.00036095,2]
[355758923,1741540238094,-170.14,0.00036108,2]
[355758924,1741540238104,-10000.0,0.00036118,2]
[355758925,1741540238114,-250.0,0.00036381,2]
[355758926,1741540238124,-200.1163264,0.00036557,120]
[355758927,1741540238133,-500.0,0.00037038,5]
[355758928,1741540238143,-500.0,0.00037125,2]
[355758929,1741540238153,-833.98,0.0003728,3]
[355758930,1741540238162,-17767.6188845,0.0003729,3]
[355758932,1741540238172,-6280.84224899,0.0003729,3]
[355758934,1741540238182,-833.94,0.0003729,3]
[355758936,1741540238191,-514.03205606,0.000373,5]
[355758938,1741540238200,-500.0,0.000374,5]
[355758940,1741540238210,-265.97588603,0.00038565,2]
[355758942,1741540238219,-500.0,0.00038979,5]
[355758944,1741540238232,-300.0,0.00039,7]
[355758946,1741540238241,-1000.0,0.00039613,2]
[355758948,1741540238251,-1000.0,0.00039613,5]
[355758950,1741540238261,-1000.0,0.00039613,5]
[355758952,1741540238271,-218.59038583,0.00040382,2]
[355758965,1741540238385,-995.59375155,0.00040382,2]
[355758966,1741540238395,-225.1935,0.00040408,14]
[355758968,1741540238406,-336.503641,0.00041211,2]
[355758970,1741540238415,-942.70910745,0.00041278,2]
[355758972,1741540238428,-299.29176229,0.00041278,2]
[355758975,1741540238446,-751.07425536,0.00041278,2]
[355758977,1741540238458,-2461.3931665,0.00041278,2]
[355758979,1741540238469,-14526.4762766,0.00041667,120]
[355758981,1741540238482,-244.48653617,0.000417,10]
[355758983,1741540238492,-812.84,0.000417,30]
[355758985,1741540238501,-8613.7251,0.00042,120]
[355758987,1741540238511,-165.81687831,0.00042286,2]
[355758989,1741540238520,-17767.6188845,0.00042386,3]
[355758991,1741540238530,-6280.84224899,0.00042386,3]
[355758992,1741540238540,-861.31,0.000424,30]
[355758994,1741540238550,-17099.44,0.000424,30]
[355758996,1741540238559,-1000.0,0.00042517,10]
[355758998,1741540238569,-500.0,0.00043835,120]
[355759000,1741540238579,-500.0,0.00043835,120]
[355759002,1741540238589,-325.22063536,0.00044383,120]
[355759004,1741540238598,-500.0,0.00044383,120]
[355759006,1741540238608,-569.02,0.00044931,120]
[355759008,1741540238617,-150.0,0.00044999,30]
[355759010,1741540238627,-10000.0,0.00045,120]
[355759012,1741540238636,-441.4688125,0.00045,120]
[355759014,1741540238646,-716.21,0.00045205,60]
[355759016,1741540238656,-716.21,0.00045479,60]
[355759018,1741540238666,-861.31,0.000456,30]
[355759020,1741540238675,-716.21,0.00045753,60]
[355759022,1741540238685,-17099.44,0.000458,30]
[355759024,1741540238694,-812.84,0.000459,30]
[355759026,1741540238704,-1128.0,0.00046,60]
[355759028,1741540238714,-716.21,0.00046027,60]
[355759030,1741540238726,-160.0,0.00046107,2]
[355759032,1741540238736,-416.66666667,0.00046107,2]
[355759034,1741540238745,-1248.59599667,0.00046124,2]
[355759035,1741540238755,-1346.02603186,0.00046255,2]
[355759037,1741540238766,-716.21,0.00046301,60]
[355759039,1741540238776,-88838.0944227,0.00046345,4]
[355759041,1741540238786,-31404.211245,0.00046345,4]
[355759043,1741540238796,-222000.0,0.00046355,2]
[355759045,1741540238805,-150.0,0.00046369,30]
[355759047,1741540238816,-500.0,0.00046373,10]
[355759048,1741540238825,-500.0,0.00046373,10]
[355759050,1741540238835,-500.0,0.00046373,10]
[355759052,1741540238845,-500.0,0.00046373,10]
[355759054,1741540238855,-500.0,0.00046373,10]
[355759056,1741540238865,-500.0,0.00046373,10]
[355759058,1741540238877,-501.75474954,0.00046373,10]
[355759072,1741540239015,-500.0,0.00046373,10]
[355759075,1741540239025,-1883.0,0.000465,120]
[355759077,1741540239036,-336.503641,0.00046532,2]
[355759079,1741540239046,-559.0265757,0.00046548,30]
[355759081,1741540239056,-559.0265757,0.00046548,30]
[355759083,1741540239066,-559.0265757,0.00046548,30]
[355759085,1741540239076,-559.0265757,0.00046548,30]
[355759087,1741540239087,-559.0265757,0.00046548,30]
[355759089,1741540239096,-559.0265757,0.00046548,30]
[355759091,1741540239105,-559.0265757,0.00046548,30]
[355759093,1741540239117,-17767.6188845,0.0004656,4]
[355759095,1741540239127,-6280.84224899,0.0004656,4]
[355759097,1741540239137,-71070.4755382,0.00046565,4]
[355759099,1741540239147,-25123.368996,0.00046565,4]
[355759101,1741540239156,-2000.0,0.0004657,120]
[355759103,1741540239166,-4000.03,0.0004657,120]
[355759105,1741540239175,-1999.99,0.0004657,120]
[355759107,1741540239184,-2000.01,0.0004657,120]
[355759109,1741540239194,-5000.0,0.0004657,120]
[355759111,1741540239203,-1436.63,0.0004657,120]
[355759113,1741540239212,-5000.0,0.0004657,120]
[355759115,1741540239221,-1000.01,0.0004657,120]
[355759117,1741540239233,-1999.99,0.0004657,120]
[355759119,1741540239242,-1999.99,0.0004657,120]
[355759121,1741540239251,-500.0,0.00046573,10]
[355759123,1741540239260,-586.50788674,0.00046573,10]
[355759125,1741540239269,-396.5377788,0.00046573,10]
[355759127,1741540239278,-500.0,0.00046573,10]
[355759129,1741540239288,-500.0,0.00046573,10]
[355759132,1741540239297,-500.0,0.00046573,10]
[355759134,1741540239306,-500.0,0.00046573,10]
[355759136,1741540239315,-539.60704792,0.00046573,10]
[355759138,1741540239324,-418.66372837,0.00046573,3]
[355759140,1741540239333,-500.00034075,0.00046573,10]
[355759142,1741540239342,-169.85742004,0.00046573,10]
[355759144,1741540239351,-500.0,0.00046573,10]
[355759146,1741540239360,-500.0,0.00046573,10]
[355759148,1741540239370,-500.0,0.00046573,10]
[355759150,1741540239378,-164.89419984,0.00046573,10]
[355759152,1741540239388,-500.0,0.00046573,10]
[355759153,1741540239397,-500.0,0.00046573,10]
[355759155,1741540239407,-503.90034788,0.00046573,10]
[355759157,1741540239416,-500.0,0.00046573,10]
[355759159,1741540239425,-500.0,0.00046573,10]
[355759161,1741540239435,-339.20292321,0.00046573,10]
[355759163,1741540239445,-500.0,0.00046573,10]
[355759165,1741540239455,-503.03600672,0.00046575,120]
[355759167,1741540239464,-500.0,0.00046575,120]
[355759169,1741540239474,-291.17370239,0.00046575,120]
[355759171,1741540239485,-500.0,0.00046575,120]
[355759172,1741540239495,-500.0,0.00046575,120]
[355759173,1741540239505,-500.0,0.00046575,120]
[355759174,1741540239515,-500.0,0.00046575,120]
[355759175,1741540239524,-500.0,0.00046575,120]
[355759176,1741540239533,-500.0,0.00046575,120]
[355759177,1741540239543,-1374.54,0.00046575,120]
[355759178,1741540239552,-500.0,0.00046575,120]
[355759179,1741540239562,-500.0,0.00046575,2]
[355759180,1741540239572,-500.0,0.00046575,120]
[355759181,1741540239581,-500.0,0.00046575,120]
[355759182,1741540239590,-500.0,0.00046575,120]
[355759183,1741540239600,-552.880373,0.00046575,2]
[355759184,1741540239611,-500.0,0.00046575,120]
[355759185,1741540239620,-609.89,0.00046575,120]
[355759186,1741540239630,-500.0,0.00046575,120]
[355759187,1741540239640,-541.3,0.00046575,15]
[355759188,1741540239650,-500.0,0.00046575,120]
[355759189,1741540239659,-534.02273981,0.00046575,120]
[355759190,1741540239669,-500.0,0.00046575,120]
[355759191,1741540239679,-500.0,0.00046575,120]
[355759192,1741540239688,-560.54,0.00046575,120]
[355759193,1741540239697,-553.32042547,0.00046575,120]
[355759194,1741540239707,-1361.19,0.00046575,2]
[355759195,1741540239716,-500.0,0.00046575,120]
[355759196,1741540239727,-1003.17508169,0.00046575,5]
[355759197,1741540239736,-500.0,0.00046575,120]
[355759199,1741540239746,-500.0,0.00046575,120]
[355759200,1741540239755,-500.0,0.00046575,120]
[355759202,1741540239764,-1271.83,0.00046575,120]
[355759204,1741540239774,-2779.03,0.00046575,120]
[355759206,1741540239783,-151.0,0.00046575,120]
[355759208,1741540239792,-500.0,0.00046575,120]
[355759210,1741540239801,-299.30220054,0.00046575,120]
[355759212,1741540239810,-500.0,0.00046575,120]
[355759213,1741540239819,-500.0,0.00046575,120]
[355759215,1741540239828,-500.0,0.00046575,120]
[355759217,1741540239838,-500.0,0.00046575,120]
[355759219,1741540239848,-500.0,0.00046575,2]
[355759221,1741540239857,-500.0,0.00046575,120]
[355759223,1741540239866,-500.0,0.00046575,120]
[355759225,1741540239877,-500.0,0.00046575,120]
[355759227,1741540239887,-500.0,0.00046575,120]
[355759229,1741540239897,-586.63,0.00046575,120]
[355759231,1741540239906,-500.0,0.00046575,120]
[355759233,1741540239915,-500.0,0.00046575,120]
[355759235,1741540239926,-716.21,0.00046575,60]
[355759237,1741540239935,-500.0,0.00046575,120]
[355759239,1741540239946,-500.0,0.00046575,120]
[355759241,1741540239957,-500.0,0.00046575,120]
[355759243,1741540239969,-500.0,0.00046575,120]
[355759245,1741540239982,-500.0,0.00046575,120]
[355759246,1741540239992,-500.0,0.00046575,120]
[355759247,1741540240002,-500.0,0.00046575,120]
[355759248,1741540240011,-500.0,0.00046575,120]
[355759249,1741540240021,-151.0,0.00046575,120]
[355759250,1741540240030,-500.0,0.00046575,120]
[355759251,1741540240039,-500.0,0.00046575,120]
[355759252,1741540240049,-500.0,0.00046575,120]
[355759253,1741540240059,-500.0,0.00046575,120]
[355759255,1741540240069,-500.0,0.00046575,120]
[355759256,1741540240079,-500.0,0.00046575,120]
[355759258,1741540240089,-537.70990993,0.00046575,120]
[355759260,1741540240098,-500.0,0.00046575,5]
[355759261,1741540240108,-500.0,0.00046575,120]
[355759263,1741540240117,-311.56167677,0.00046575,120]
[355759264,1741540240126,-500.0,0.00046575,120]
[355759265,1741540240136,-500.0,0.00046575,120]
[355759266,1741540240145,-500.0,0.00046575,120]
[355759267,1741540240155,-500.0,0.00046575,120]
[355759268,1741540240164,-500.0,0.00046575,120]
[355759269,1741540240174,-151.0,0.00046575,120]
[355759270,1741540240184,-500.0,0.00046575,120]
[355759271,1741540240194,-500.0,0.00046575,120]
[355759272,1741540240204,-500.0,0.00046575,120]
[355759273,1741540240214,-500.0,0.00046575,120]
[355759274,1741540240224,-500.0,0.00046575,120]
[355759275,1741540240235,-500.0,0.00046575,120]
[355759276,1741540240245,-500.0,0.00046575,120]
[355759277,1741540240254,-500.0,0.00046575,120]
[355759278,1741540240264,-500.0,0.00046575,120]
[355759279,1741540240274,-980.5,0.00046575,120]
[355759280,1741540240283,-500.0,0.00046575,120]
[355759282,1741540240292,-513.70118828,0.00046575,120]
[355759283,1741540240302,-3086.33,0.00046575,120]
[355759285,1741540240312,-500.0,0.00046575,120]
[355759286,1741540240322,-1393.02,0.00046575,120]
[355759287,1741540240331,-500.0,0.00046575,120]
[355759288,1741540240341,-500.0,0.00046575,120]
[355759289,1741540240351,-500.0,0.00046575,120]
[355759290,1741540240362,-500.0,0.00046575,120]
[355759291,1741540240371,-500.0,0.00046575,120]
[355759292,1741540240382,-578.07,0.00046575,120]
[355759293,1741540240392,-500.0,0.00046575,120]
[355759294,1741540240402,-500.0,0.00046575,120]
[355759295,1741540240412,-500.0,0.00046575,120]
[355759296,1741540240422,-500.0,0.00046575,120]
[355759297,1741540240432,-2257.93,0.00046575,120]
[355759298,1741540240441,-6483.5,0.00046575,120]
[355759299,1741540240451,-500.0,0.00046575,120]
[355759300,1741540240461,-500.0,0.00046575,120]
[355759301,1741540240470,-500.0,0.00046575,120]
[355759302,1741540240482,-939.62,0.00046575,120]
[355759303,1741540240492,-500.0,0.00046575,120]
[355759304,1741540240502,-500.0,0.00046575,120]
[355759305,1741540240511,-500.0,0.00046575,120]
[355759306,1741540240521,-1350.44,0.00046575,120]
[355759307,1741540240530,-500.0,0.00046575,120]
[355759308,1741540240540,-500.0,0.00046575,120]
[355759309,1741540240550,-500.0,0.00046575,120]
[355759310,1741540240560,-500.0,0.00046575,120]
[355759311,1741540240570,-500.0,0.00046575,120]
[355759312,1741540240579,-500.0,0.00046575,120]
[355759313,1741540240589,-612.03,0.00046575,120]
[355759314,1741540240599,-500.0,0.00046575,120]
[355759315,1741540240608,-920.02,0.00046575,120]
[355759316,1741540240618,-834.8,0.00046575,120]
[355759317,1741540240628,-4023.54,0.00046575,120]
[355759318,1741540240637,-500.0,0.00046575,120]
[355759319,1741540240647,-513.49,0.00046575,120]
[355759320,1741540240657,-500.0,0.00046575,120]
[355759321,1741540240666,-500.0,0.00046575,120]
[355759322,1741540240676,-549.02,0.00046575,120]
[355759323,1741540240686,-957.07,0.00046575,120]
[355759324,1741540240695,-500.0,0.00046575,120]
[355759325,1741540240704,-500.0,0.00046575,120]
[355759326,1741540240714,-34713.26,0.00046575,7]
[355759327,1741540240723,-500.0,0.00046575,120]
[355759328,1741540240734,-500.0,0.00046575,120]
[355759329,1741540240743,-500.0,0.00046575,120]
[355759330,1741540240752,-500.0,0.00046575,120]
[355759331,1741540240761,-500.0,0.00046575,120]
[355759332,1741540240771,-500.0,0.00046575,120]
[355759333,1741540240780,-680.47,0.00046575,120]
[355759334,1741540240795,-500.0,0.00046575,120]
[355759335,1741540240805,-500.0,0.00046575,120]
[355759336,1741540240814,-500.0,0.00046575,120]
[355759337,1741540240824,-500.0,0.00046575,120]
[355759338,1741540240834,-1019.45,0.00046575,120]
[355759339,1741540240843,-1000.0,0.00046575,7]
[355759340,1741540240853,-497.16,0.00046575,2]
[355759341,1741540240863,-500.0,0.00046575,120]
[355759342,1741540240872,-500.0,0.00046575,120]
[355759343,1741540240886,-500.0,0.00046575,120]
[355759344,1741540240896,-500.0,0.00046575,120]
[355759345,1741540240906,-500.0,0.00046575,120]
[355759346,1741540240915,-1635.39,0.00046575,60]
[355759347,1741540240926,-500.0,0.00046575,120]
[355759348,1741540240935,-500.0,0.00046575,120]
[355759349,1741540240946,-511.57342437,0.00046575,120]
[355759350,1741540240955,-500.0,0.00046575,120]
[355759351,1741540240967,-500.0,0.00046575,120]
[355759352,1741540240979,-500.0,0.00046575,120]
[355759353,1741540240991,-500.0,0.00046575,120]
[355759354,1741540241001,-500.0,0.00046575,120]
[355759355,1741540241012,-500.0,0.00046575,120]
[355759356,1741540241021,-500.0,0.00046575,120]
[355759357,1741540241032,-500.0,0.00046575,120]
[355759358,1741540241042,-500.0,0.00046575,120]
[355759359,1741540241052,-500.0,0.00046575,120]
[355759360,1741540241062,-526.38702251,0.00046575,120]
[355759361,1741540241073,-500.0,0.00046575,120]
[355759362,1741540241083,-503.05,0.00046575,120]
[355759363,1741540241092,-1018.04,0.00046575,120]
[355759364,1741540241102,-500.0,0.00046575,120]
[355759365,1741540241114,-500.0,0.00046575,120]
[355759366,1741540241124,-500.0,0.00046575,120]
[355759367,1741540241134,-500.0,0.00046575,120]
[355759368,1741540241145,-500.0,0.00046575,120]
[355759369,1741540241258,-500.0,0.00046575,120]
[355759370,1741540241271,-221.28872117,0.00046575,120]
[355759371,1741540241283,-500.0,0.00046575,120]
[355759372,1741540241293,-500.0,0.00046575,120]
[355759373,1741540241303,-500.0,0.00046575,120]
[355759374,1741540241313,-500.0,0.00046575,120]
[355759375,1741540241324,-500.0,0.00046575,120]
[355759376,1741540241334,-500.0,0.00046575,120]
[355759377,1741540241343,-500.0,0.00046575,120]
[355759378,1741540241354,-500.0,0.00046575,120]
[355759379,1741540241363,-1923.18,0.00046575,120]
[355759380,1741540241373,-500.0,0.00046575,120]
[355759381,1741540241383,-500.0,0.00046575,120]
[355759382,1741540241392,-500.0,0.00046575,120]
[355759383,1741540241402,-643.76,0.00046575,120]
[355759384,1741540241411,-500.0,0.00046575,2]
[355759385,1741540241422,-12786.61,0.00046575,2]
[355759386,1741540241432,-500.0,0.00046575,120]
[355759387,1741540241441,-500.0,0.00046575,120]
[355759388,1741540241451,-500.0,0.00046575,120]
[355759389,1741540241461,-500.0,0.00046575,120]
[355759390,1741540241471,-500.0,0.00046575,120]
[355759391,1741540241483,-590.76,0.00046575,120]
[355759392,1741540241493,-740.75,0.00046575,120]
[355759393,1741540241502,-500.0,0.00046575,120]
[355759394,1741540241512,-1000.0,0.00046575,2]
[355759395,1741540241522,-501.88,0.00046575,120]
[355759396,1741540241531,-500.0,0.00046575,120]
[355759397,1741540241541,-634.642342,0.00046575,2]
[355759398,1741540241551,-150.0,0.00046575,10]
[355759399,1741540241561,-3000.0,0.00046575,10]
[355759400,1741540241571,-600.0,0.00046681,120]
[355759401,1741540241581,-861.31,0.000467,30]
[355759402,1741540241590,-716.21,0.00046849,60]
[355759403,1741540241600,-154.22678559,0.00046849,120]
[355759404,1741540241610,-154.22678559,0.00046849,120]
[355759405,1741540241620,-154.22678559,0.00046849,120]
[355759406,1741540241629,-154.22678559,0.00046849,120]
[355759407,1741540241639,-154.22678559,0.00046849,120]
[355759408,1741540241649,-600.0,0.00046955,120]
[355759409,1741540241658,-17099.44,0.00047,30]
[355759410,1741540241668,-179.2570724,0.00047023,33]
[355759411,1741540241678,-3000.0,0.00047023,2]